bitfinex-derivatives/quotes_BTCF0:USTF0_20250929
["timestamp","ask_amount","ask_price","bid_price","bid_amount"]
[1759133091375,0.54596828,112090.0,112080.0,0.0901874]
[1759133092183,0.80394922,112090.0,112080.0,0.60614928]
[1759133093383,0.80394922,112090.0,112080.0,0.60514928]
[1759133093584,0.81094922,112090.0,112080.0,0.60514928]
[1759133095180,0.55296828,112090.0,112080.0,0.60514928]
[1759133095785,0.81094922,112090.0,112080.0,0.60514928]
[1759133097486,0.81094922,112090.0,112080.0,0.51596188]
[1759133098288,0.0891874,112080.0,112050.0,0.10748522]
[1759133098490,0.03591,112070.0,112060.0,0.90769694]
[1759133098785,0.125108,112070.0,112060.0,1.43619788]
[1759133099375,0.125108,112070.0,112060.0,0.920236]
[1759133099579,0.125108,112070.0,112060.0,0.60815788]
[1759133099981,0.125108,112070.0,112060.0,1.43983788]
[1759133100489,0.125108,112070.0,112060.0,1.43683788]
[1759133100790,0.125108,112070.0,112060.0,1.44387788]
[1759133100978,0.125108,112070.0,112060.0,1.18589694]
[1759133101185,0.125108,112070.0,112060.0,1.44387788]
[1759133101488,0.38308894,112070.0,112060.0,0.35417694]
[1759133101686,0.38308894,112070.0,112060.0,0.26498094]
[1759133102386,0.78308894,112070.0,112060.0,0.26498094]
[1759133102795,0.78308894,112070.0,112060.0,0.25798094]
[1759133103088,0.78508894,112070.0,112060.0,0.25798094]
[1759133103484,0.1251133,112060.0,112050.0,0.9202858]
[1759133103683,0.1251133,112060.0,112050.0,1.17826674]
[1759133104888,0.38309424,112060.0,112050.0,1.17786674]
[1759133105281,0.38309424,112060.0,112050.0,0.25798094]
[1759133105483,0.38309424,112060.0,112050.0,0.34719224]
[1759133105787,0.38309424,112060.0,112050.0,0.25798094]
[1759133105987,0.38309424,112060.0,112050.0,0.0892113]
[1759133106184,0.38509424,112060.0,112050.0,0.34719224]
[1759133107083,0.39009424,112060.0,112050.0,0.34719224]
[1759133107284,0.38809424,112060.0,112050.0,0.34719224]
[1759133107485,0.39909424,112060.0,112050.0,0.34719224]
[1759133107792,0.39909424,112060.0,112050.0,0.0892113]
[1759133107989,0.39909424,112060.0,112050.0,0.34719224]
[1759133108891,0.1251213,112050.0,112040.0,1.16867454]
[1759133109282,0.1251213,112050.0,112040.0,0.34719454]
[1759133109478,0.1251213,112050.0,112040.0,0.0892136]
[1759133110082,0.1251213,112050.0,112040.0,0.34719454]
[1759133110083,0.38310224,112050.0,112040.0,0.34719454]
[1759133110295,0.38510224,112050.0,112040.0,0.34719454]
[1759133110683,0.38310224,112050.0,112040.0,0.34719454]
[1759133110989,0.38310224,112050.0,112040.0,0.25798094]
[1759133110990,0.38810224,112050.0,112040.0,0.25798094]
[1759133111190,0.1251292,112040.0,112030.0,0.93727947]
[1759133111382,0.1251292,112040.0,112030.0,1.19526041]
[1759133114491,0.1251292,112040.0,112030.0,1.19626041]
[1759133116296,0.1251292,112040.0,112030.0,0.36642041]
[1759133116492,0.38311014,112040.0,112030.0,1.19522041]
[1759133117489,0.1251292,112040.0,112030.0,1.19522041]
[1759133117893,0.1251292,112040.0,112030.0,1.19494041]
[1759133118390,0.38311014,112040.0,112030.0,0.27719821]
[1759133118587,0.1251292,112040.0,112030.0,0.36642541]
[1759133119396,0.38311014,112040.0,112030.0,0.36642541]
[1759133120394,0.1251292,112040.0,112030.0,0.36642541]
[1759133124493,0.03591,112040.0,112030.0,0.62440635]
[1759133125392,0.03591,112040.0,112030.0,1.02440635]
[1759133125694,0.01261,112040.0,112030.0,1.28238729]
[1759133126398,0.01261,112060.0,112050.0,0.0892113]
[1759133126592,0.01261,112060.0,112050.0,1.50521499]
[1759133127101,0.01261,112060.0,112050.0,1.90517499]
[1759133127803,0.02961,112060.0,112050.0,1.90517499]
[1759133128004,0.03761,112060.0,112050.0,1.90517499]
[1759133128298,0.03761,112060.0,112050.0,1.07725499]
[1759133128602,0.03761,112060.0,112050.0,1.90497499]
[1759133128803,0.03761,112060.0,112050.0,1.90505499]
[1759133129102,0.03761,112060.0,112050.0,1.07725499]
[1759133129307,0.03761,112060.0,112050.0,1.90505499]
[1759133129900,0.03761,112060.0,112050.0,1.07725499]
[1759133130105,0.03761,112060.0,112050.0,1.90497499]
[1759133131309,0.03761,112060.0,112050.0,1.07725499]
[1759133131606,0.03761,112060.0,112050.0,1.90493499]
[1759133132706,0.03761,112060.0,112050.0,1.90469499]
[1759133133007,0.03761,112060.0,112050.0,1.07725499]
[1759133133208,0.03761,112060.0,112050.0,1.90437499]
[1759133134008,0.03761,112060.0,112050.0,0.56129311]
[1759133134306,0.03761,112060.0,112050.0,1.90433499]
[1759133135000,0.0602,112060.0,112050.0,1.43201318]
[1759133135201,0.0602,112060.0,112050.0,1.43197318]
[1759133138910,0.0602,112060.0,112050.0,0.60517318]
[1759133139114,0.0602,112060.0,112050.0,1.43153318]
[1759133141003,0.0602,112060.0,112050.0,0.60517318]
[1759133141210,0.0602,112060.0,112050.0,1.43125318]
[1759133143109,0.1494028,112060.0,112050.0,1.43125318]
[1759133143612,0.0602,112060.0,112050.0,1.43125318]
[1759133144499,0.0602,112060.0,112050.0,1.50144373]
[1759133148218,0.0602,112060.0,112050.0,1.50155287]
[1759133148718,0.0602,112060.0,112050.0,1.50159287]
[1759133149514,0.03761,112060.0,112050.0,1.50159287]
[1759133149713,0.03761,112060.0,112050.0,1.90159287]
[1759133151317,0.03761,112060.0,112050.0,1.96513784]
[1759133151617,0.03761,112060.0,112050.0,1.90159287]
[1759133152317,0.03761,112060.0,112050.0,1.90027287]
[1759133152622,0.01261,112070.0,112060.0,0.0892028]
[1759133152915,0.01261,112070.0,112060.0,1.65338236]
[1759133153817,0.01261,112070.0,112060.0,1.65330236]
[1759133154319,0.01561,112070.0,112060.0,1.65330236]
[1759133154516,0.03807,112070.0,112060.0,0.42870236]
[1759133154717,0.03807,112070.0,112060.0,0.34723831]
[1759133154917,0.03807,112070.0,112060.0,1.17163831]
[1759133155613,0.01561,112070.0,112060.0,0.34723831]
[1759133155814,0.01561,112070.0,112060.0,1.17163831]
[1759133156118,0.01561,112070.0,112060.0,1.17151831]
[1759133156721,0.01561,112070.0,112060.0,0.34723831]
[1759133156921,0.03807,112070.0,112060.0,1.17151831]
[1759133157619,0.03807,112070.0,112060.0,1.23508162]
[1759133157818,0.03807,112070.0,112060.0,0.41080162]
[1759133158022,0.01561,112070.0,112060.0,0.41080162]
[1759133158324,0.03807,112070.0,112060.0,1.23480162]
[1759133159223,0.1272648,112070.0,112060.0,0.06356331]
[1759133159417,0.5272648,112070.0,112060.0,0.15276611]
[1759133159615,0.1245528,112060.0,112050.0,0.15281411]
[1759133159817,0.1245528,112060.0,112050.0,0.8375708]
[1759133160016,0.03535,112060.0,112050.0,1.09560631]
[1759133160415,0.1245528,112060.0,112050.0,1.09560631]
[1759133160616,0.1245528,112060.0,112050.0,0.34728631]
[1759133160817,0.1245528,112060.0,112050.0,1.17332631]
[1759133161115,0.1245528,112060.0,112050.0,1.17632631]
[1759133164819,0.03535,112060.0,112050.0,1.17632631]
[1759133165526,0.01289,112060.0,112050.0,1.43436182]
[1759133166023,0.01289,112060.0,112050.0,1.17632631]
[1759133166828,0.1245528,112060.0,112050.0,0.35228631]
[1759133167129,0.1245528,112060.0,112050.0,1.17552631]
[1759133167524,0.03535,112060.0,112050.0,1.17552631]
[1759133172829,0.1245518,112060.0,112050.0,0.0942508]
[1759133173022,0.1245518,112060.0,112050.0,0.92600631]
[1759133173224,0.03535,112060.0,112050.0,0.92600631]
[1759133174429,0.03535,112060.0,112050.0,0.6679708]
[1759133174734,0.03535,112060.0,112050.0,1.18404182]
[1759133174935,0.1245518,112060.0,112050.0,1.18404182]
[1759133175533,0.03535,112060.0,112050.0,1.18404182]
[1759133178432,0.01261,112070.0,112060.0,0.0892018]
[1759133178637,0.01261,112070.0,112060.0,0.66889353]
[1759133179040,0.01261,112070.0,112060.0,1.06889353]
[1759133179231,0.01261,112070.0,112060.0,1.00527282]
[1759133179427,0.01261,112070.0,112060.0,1.06887123]
[1759133180140,0.01261,112070.0,112060.0,1.89051123]
[1759133180537,0.01261,112070.0,112060.0,1.89031123]
[1759133181139,0.01561,112070.0,112060.0,1.89031123]
[1759133181339,0.01561,112070.0,112060.0,1.63215572]
[1759133183841,0.01561,112070.0,112060.0,1.63199572]
[1759133184238,0.01561,112070.0,112060.0,0.81083572]
[1759133184445,0.01561,112070.0,112060.0,1.63199572]
[1759133185646,0.01561,112070.0,112060.0,0.81083572]
[1759133185842,0.01561,112070.0,112060.0,1.56803731]
[1759133186346,0.01561,112070.0,112060.0,0.74723731]
[1759133186550,0.01561,112070.0,112060.0,1.56799731]
[1759133186740,0.01561,112070.0,112060.0,1.56795731]
[1759133188252,0.01561,112070.0,112060.0,1.63151845]
[1759133188453,0.01561,112070.0,112060.0,1.63143845]
[1759133188955,0.01561,112070.0,112060.0,0.81079845]
[1759133189249,0.01561,112070.0,112060.0,1.63139845]
[1759133189552,0.01561,112070.0,112060.0,0.81079845]
[1759133189748,0.03665,112070.0,112060.0,1.63123845]
[1759133190449,0.01561,112070.0,112060.0,1.63123845]
[1759133190752,0.01561,112070.0,112060.0,1.63111845]
[1759133190953,0.01561,112070.0,112060.0,0.81079845]
[1759133191142,0.03665,112070.0,112060.0,1.63107845]
[1759133192451,0.01358,112060.0,112050.0,0.15280614]
[1759133192654,0.03462,112060.0,112050.0,1.23100165]
[1759133193056,0.03462,112060.0,112050.0,1.48903716]
[1759133193459,0.1238228,112060.0,112050.0,1.48903716]
[1759133193760,0.1238228,112060.0,112050.0,1.23172165]
[1759133193957,0.1238228,112060.0,112050.0,1.23372165]
[1759133194556,0.1238228,112060.0,112050.0,0.41284165]
[1759133194960,0.1238228,112060.0,112050.0,0.26007551]
[1759133195156,0.1238228,112060.0,112050.0,1.08191551]
[1759133196255,0.78185831,112060.0,112050.0,0.8238]
[1759133197464,0.78185831,112060.0,112050.0,0.9130108]
[1759133199557,0.38185831,112060.0,112050.0,0.9130108]
[1759133200460,0.38185831,112060.0,112050.0,0.0922508]
[1759133200669,0.78185831,112060.0,112050.0,0.00304]
[1759133201466,0.78185831,112060.0,112050.0,0.0922508]
[1759133201859,0.38185831,112060.0,112050.0,0.0922508]
[1759133203166,0.38185831,112060.0,112050.0,0.00304]
[1759133203655,0.78185831,112060.0,112050.0,0.00304]
[1759133203859,0.85305594,112060.0,112050.0,0.00304]
[1759133205466,0.87349879,112060.0,112050.0,0.00304]
[1759133207866,0.61546328,112060.0,112050.0,0.00304]
[1759133208074,0.87349879,112060.0,112050.0,0.00304]
[1759133208266,0.61546328,112060.0,112050.0,0.26121608]
[1759133208564,0.61546328,112060.0,112050.0,0.35042678]
[1759133208565,0.14426565,112060.0,112050.0,0.35042678]
[1759133208770,0.05506285,112060.0,112050.0,0.60860286]
[1759133209071,0.05506285,112060.0,112050.0,0.35042678]
[1759133209968,0.14426565,112060.0,112050.0,0.35042678]
[1759133210179,1.06061781,112060.0,112050.0,0.82332]
[1759133210368,1.06061781,112060.0,112050.0,1.08149608]
[1759133210674,0.80244173,112060.0,112050.0,1.08149608]
[1759133210973,0.80244173,112060.0,112050.0,1.17070678]
[1759133211176,1.06061781,112060.0,112050.0,1.17070678]
[1759133211369,0.80244173,112060.0,112050.0,1.08149608]
[1759133211571,0.54426565,112060.0,112050.0,0.35042678]
[1759133211775,0.80244173,112060.0,112050.0,0.00304]
[1759133212075,0.87508074,112060.0,112050.0,0.26121608]
[1759133214177,1.13325682,112060.0,112050.0,0.00304]
[1759133215078,0.61690466,112060.0,112050.0,0.00304]
[1759133215284,1.13325682,112060.0,112050.0,0.00304]
[1759133217471,0.1242967,112030.0,112020.0,1.16911632]
[1759133217671,0.1242967,112030.0,112020.0,1.4272924]
[1759133218680,0.1242967,112030.0,112020.0,0.6266924]
[1759133218877,0.38247278,112030.0,112020.0,0.36851632]
[1759133219074,0.1242967,112030.0,112020.0,1.4480124]
[1759133219273,0.03507,112030.0,112020.0,1.4480124]
[1759133219879,0.03507,112030.0,112020.0,1.8360124]
[1759133220585,0.03507,112030.0,112020.0,1.8362924]
[1759133221379,0.03507,112030.0,112020.0,1.31994024]
[1759133221584,0.03507,112030.0,112020.0,1.8362924]
[1759133222482,0.03507,112030.0,112020.0,0.49834024]
[1759133222483,0.38247268,112030.0,112020.0,0.49834024]
[1759133222791,0.38247268,112030.0,112020.0,1.17795632]
[1759133223683,0.38247278,112030.0,112020.0,1.4361324]
[1759133223984,0.1242967,112030.0,112020.0,1.4331324]
[1759133224184,0.1242967,112030.0,112020.0,1.4451324]
[1759133224383,0.38247278,112030.0,112020.0,1.4451324]
[1759133224583,0.1242967,112030.0,112020.0,1.4301324]
[1759133225086,0.1242967,112030.0,112020.0,1.4341324]
[1759133225385,0.03507,112030.0,112020.0,1.4341324]
[1759133225782,0.1242967,112030.0,112020.0,0.6126924]
[1759133225989,0.03507,112030.0,112020.0,1.4343324]
[1759133227288,0.1242966,112030.0,112020.0,1.4343324]
[1759133229385,0.1242966,112030.0,112020.0,0.6126924]
[1759133229796,0.38247268,112030.0,112020.0,0.82910854]
[1759133230088,0.78247268,112030.0,112020.0,0.00710854]
[1759133230587,0.78247268,112030.0,112020.0,0.00010854]
[1759133231680,0.80380806,112030.0,112020.0,0.00010854]
[1759133231884,0.80380806,112030.0,112020.0,0.00110854]
[1759133232186,1.06198414,112030.0,112020.0,0.00110854]
[1759133232390,0.80380806,112030.0,112020.0,0.00110854]
[1759133232687,0.80380806,112030.0,112020.0,0.00010854]
[1759133232884,0.80880806,112030.0,112020.0,0.00010854]
[1759133235991,0.80880806,112030.0,112020.0,0.25828462]
[1759133236292,0.78747268,112030.0,112020.0,0.25828462]
[1759133237191,0.80878757,112030.0,112020.0,0.25828462]
[1759133237390,0.80878552,112030.0,112020.0,0.25828462]
[1759133237783,0.80878552,112030.0,112020.0,0.00010854]
[1759133237984,0.80878552,112030.0,112020.0,0.34751922]
[1759133239094,0.80878552,112030.0,112020.0,0.25828462]
[1759133239681,0.80878552,112030.0,112020.0,0.00010854]
[1759133239887,0.80878552,112030.0,112020.0,0.25828462]
[1759133243295,0.78747268,112030.0,112020.0,0.25828462]
[1759133243597,0.80879523,112030.0,112020.0,0.00010854]
[1759133243792,0.80879523,112030.0,112020.0,0.25828462]
[1759133247201,0.15061915,112030.0,112020.0,1.0056953]
[1759133248002,0.1292966,112030.0,112020.0,1.0056953]
[1759133248892,0.15063446,112030.0,112020.0,1.30998314]
[1759133249099,0.15063446,112030.0,112020.0,1.8263353]
[1759133249297,0.1292966,112030.0,112020.0,1.8263353]
[1759133250596,0.04007,112030.0,112020.0,1.8263353]
[1759133250798,0.01773,112030.0,112020.0,2.08451138]
[1759133250992,0.01773,112030.0,112020.0,2.16618578]
[1759133252797,0.01773,112030.0,112020.0,2.16614578]
[1759133252997,0.01773,112030.0,112020.0,1.34554578]
[1759133253204,0.01773,112030.0,112020.0,2.16614578]
[1759133256702,0.01773,112030.0,112020.0,1.34554578]
[1759133256902,0.01773,112030.0,112020.0,2.16606578]
[1759133259103,0.01773,112030.0,112020.0,1.34554578]
[1759133259296,0.01773,112030.0,112020.0,2.16606578]
[1759133259496,0.01773,112030.0,112020.0,1.76602578]
[1759133259700,0.01773,112030.0,112020.0,0.94554578]
[1759133260004,0.04087,112030.0,112020.0,1.4261753]
[1759133267207,0.04087,112030.0,112020.0,1.48973644]
[1759133268302,0.04087,112030.0,112020.0,0.66925644]
[1759133268503,0.04087,112030.0,112020.0,1.48969644]
[1759133269512,0.04087,112030.0,112020.0,0.97334428]
[1759133269702,0.04087,112030.0,112020.0,1.48969644]
[1759133269902,0.04087,112030.0,112020.0,1.4261353]
[1759133270397,0.04087,112030.0,112020.0,1.4261243]
[1759133270601,0.04087,112030.0,112020.0,0.6056843]
[1759133270810,0.04087,112030.0,112020.0,1.4260843]
[1759133271205,0.04087,112030.0,112020.0,0.6056843]
[1759133271504,0.04087,112030.0,112020.0,1.4260843]
[1759133273306,0.78826728,112030.0,112020.0,0.00010854]
[1759133273505,0.44087,112030.0,112020.0,1.16791372]
[1759133273717,0.5300967,112030.0,112020.0,1.16791372]
[1759133274014,0.5300967,112030.0,112020.0,0.34751372]
[1759133274514,0.78826728,112030.0,112020.0,0.00010854]
[1759133274906,0.78826728,112030.0,112020.0,0.82050854]
[1759133276012,0.78826728,112030.0,112020.0,0.90974314]
[1759133276313,0.5300967,112030.0,112020.0,0.82050854]
[1759133276509,0.78826728,112030.0,112020.0,0.90974314]
[1759133277114,0.78826728,112030.0,112020.0,0.08934314]
[1759133278416,0.78826728,112030.0,112020.0,0.00010854]
[1759133278616,0.80960023,112030.0,112020.0,0.00010854]
[1759133281114,0.55142965,112030.0,112020.0,0.08934314]
[1759133281416,0.78826728,112030.0,112020.0,0.34751372]
[1759133282016,0.78826728,112030.0,112020.0,0.08934314]
[1759133282715,0.78826728,112030.0,112020.0,0.00010854]
[1759133284711,0.80958677,112030.0,112020.0,0.00010854]
[1759133285324,0.78826728,112030.0,112020.0,0.00010854]
[1759133286213,1.60870728,112030.0,112020.0,0.00010854]
[1759133286624,0.78826728,112030.0,112020.0,0.00010854]
[1759133286814,1.60870728,112030.0,112020.0,0.00010854]
[1759133287321,0.78826728,112030.0,112020.0,0.00010854]
[1759133287624,1.60870728,112030.0,112020.0,0.00010854]
[1759133287919,1.3505367,112030.0,112020.0,0.00010854]
[1759133288120,1.60870728,112030.0,112020.0,0.00010854]
[1759133288313,0.78826728,112030.0,112020.0,0.00010854]
[1759133288517,0.1300967,112030.0,112020.0,0.34751372]
[1759133289316,0.04087,112030.0,112020.0,0.34751372]
[1759133289619,0.04087,112030.0,112020.0,0.6056843]
[1759133289820,0.04087,112030.0,112020.0,1.16795372]
[1759133290319,0.04087,112030.0,112020.0,1.4261243]
[1759133290514,0.01773,112030.0,112020.0,1.8261243]
[1759133291019,0.01773,112030.0,112020.0,1.0056843]
[1759133291223,0.01773,112030.0,112020.0,1.8261243]
[1759133292121,0.01773,112030.0,112020.0,1.0056843]
[1759133292320,0.01773,112030.0,112020.0,1.8261243]
[1759133293410,0.01773,112030.0,112020.0,1.0056843]
[1759133293918,0.1299066,112030.0,112020.0,1.16791372]
[1759133294414,0.1299066,112030.0,112020.0,0.34751372]
[1759133294621,0.1299066,112030.0,112020.0,0.90974314]
[1759133294821,0.1299066,112030.0,112020.0,1.16791372]
[1759133296525,0.04068,112030.0,112020.0,1.16791372]
[1759133297624,0.1299067,112030.0,112020.0,1.16787372]
[1759133298222,0.1299067,112030.0,112020.0,0.34751372]
[1759133298420,0.38807728,112030.0,112020.0,0.08934314]
[1759133298724,0.78807728,112030.0,112020.0,0.08934314]
[1759133298912,0.78807728,112030.0,112020.0,0.90970314]
[1759133299622,0.1299067,112030.0,112020.0,1.16787372]
[1759133302924,0.1299067,112030.0,112020.0,0.90970314]
[1759133303727,0.1299067,112030.0,112020.0,0.82046854]
[1759133304119,0.38807728,112030.0,112020.0,0.82046854]
[1759133304825,0.1299067,112030.0,112020.0,0.82046854]
[1759133305025,0.38807728,112030.0,112020.0,0.82046854]
[1759133308725,0.38807728,112030.0,112020.0,0.82042854]
[1759133310325,0.78807728,112030.0,112020.0,0.00010854]
[1759133310530,0.78807728,112030.0,112020.0,0.82042854]
[1759133311331,0.78807728,112030.0,112020.0,0.90966314]
[1759133312526,0.1299066,112030.0,112020.0,1.16783372]
[1759133313126,0.38807718,112030.0,112020.0,0.00010854]
[1759133313328,0.38807718,112030.0,112020.0,0.90966314]
[1759133316429,0.38807718,112030.0,112020.0,0.08934314]
[1759133316637,0.04068,112030.0,112020.0,1.16783372]
[1759133316838,0.01773,112030.0,112020.0,1.8260043]
[1759133317031,0.01773,112030.0,112020.0,1.88956544]
[1759133317328,0.01773,112030.0,112020.0,1.06924544]
[1759133317529,0.01773,112030.0,112020.0,1.88956544]
[1759133319435,0.01773,112030.0,112020.0,1.48956544]
[1759133322229,0.01773,112030.0,112020.0,1.4260043]
[1759133323223,0.01773,112030.0,112020.0,2.08417488]
[1759133323532,0.01273,112050.0,112040.0,0.0892187]
[1759133323728,0.01273,112050.0,112040.0,1.42579986]
[1759133324232,0.01273,112050.0,112040.0,0.61469978]
[1759133324436,0.03497,112050.0,112040.0,1.43489978]
[1759133324925,0.04497,112050.0,112040.0,0.61469978]
[1759133325223,0.04497,112050.0,112040.0,1.43489978]
[1759133326639,0.03497,112050.0,112040.0,1.43489978]
[1759133327739,0.03497,112050.0,112040.0,0.61469978]
[1759133328038,0.03497,112050.0,112040.0,1.43485978]
[1759133328431,0.03497,112050.0,112040.0,1.42567986]
[1759133329141,0.03497,112050.0,112040.0,1.16750928]
[1759133329634,0.03497,112050.0,112040.0,0.34738928]
[1759133329840,0.03497,112050.0,112040.0,1.4345405]
[1759133330140,0.03497,112050.0,112040.0,0.6144205]
[1759133330335,0.03497,112050.0,112040.0,1.4345405]
[1759133330534,0.03497,112050.0,112040.0,0.6144205]
[1759133330735,0.03497,112050.0,112040.0,1.42567986]
[1759133331033,0.03497,112050.0,112040.0,0.60555986]
[1759133331231,0.03497,112050.0,112040.0,1.42567986]
[1759133331437,0.01273,112050.0,112040.0,1.42567986]
[1759133331643,0.01273,112050.0,112040.0,1.48935566]
[1759133332341,0.01273,112050.0,112040.0,1.68339108]
[1759133333538,0.01273,112050.0,112040.0,2.14706688]
[1759133333739,0.01358,112060.0,112050.0,0.34722816]
[1759133334145,0.01358,112060.0,112050.0,0.60524562]
[1759133334739,0.01358,112060.0,112050.0,1.42528562]
[1759133335045,0.01858,112060.0,112050.0,1.42528562]
[1759133335839,0.01358,112060.0,112050.0,1.42528562]
[1759133336039,0.01358,112060.0,112050.0,0.60524562]
[1759133336744,0.01358,112060.0,112050.0,1.42524562]
[1759133338742,0.01358,112060.0,112050.0,0.60524562]
[1759133338941,0.01358,112060.0,112050.0,1.42520562]
[1759133339743,0.01358,112060.0,112050.0,0.60524562]
[1759133340045,0.01358,112060.0,112050.0,1.42516562]
[1759133340246,0.0356,112060.0,112050.0,1.42516562]
[1759133340947,0.01358,112060.0,112050.0,1.42516562]
[1759133342247,0.01358,112060.0,112050.0,1.68318308]
[1759133342651,0.01358,112060.0,112050.0,0.86326308]
[1759133342952,0.01358,112060.0,112050.0,1.42512562]
[1759133344850,0.01358,112060.0,112050.0,1.68314308]
[1759133346450,0.01358,112060.0,112050.0,1.42512562]
[1759133347754,0.01458,112060.0,112050.0,1.42512562]
[1759133348644,0.01458,112060.0,112050.0,0.60524562]
[1759133348844,0.01458,112060.0,112050.0,1.42504562]
[1759133349352,0.01458,112060.0,112050.0,0.60524562]
[1759133349555,0.01458,112060.0,112050.0,1.42504562]
[1759133350353,0.01458,112060.0,112050.0,1.48868142]
[1759133351154,0.01458,112060.0,112050.0,0.66892142]
[1759133351346,0.01458,112060.0,112050.0,1.48868142]
[1759133354850,0.01458,112060.0,112050.0,2.08302308]
[1759133355052,0.01458,112060.0,112050.0,2.32589888]
[1759133355254,0.01334,112070.0,112060.0,0.0892028]
[1759133355455,0.01334,112070.0,112060.0,0.86325518]
[1759133356050,0.01334,112080.0,112070.0,0.0891948]
[1759133356251,0.01334,112080.0,112070.0,1.42490972]
[1759133356650,0.01334,112080.0,112070.0,1.68292718]
[1759133356850,0.01334,112080.0,112070.0,1.74660298]
[1759133357252,0.01334,112080.0,112070.0,1.68292718]
[1759133357850,0.01334,112080.0,112070.0,0.86324718]
[1759133358053,0.01334,112080.0,112070.0,0.60522972]
[1759133358249,0.01334,112080.0,112070.0,0.0891948]
[1759133358454,0.03465,112080.0,112070.0,0.34721226]
[1759133359359,0.03465,112080.0,112070.0,1.16685226]
[1759133359561,0.03465,112080.0,112070.0,0.34721226]
[1759133359758,0.03465,112080.0,112070.0,1.16685226]
[1759133359947,0.03765,112080.0,112070.0,0.34721226]
[1759133360148,0.1268365,112080.0,112070.0,0.34721226]
[1759133360450,0.1268365,112080.0,112070.0,1.16685226]
[1759133360851,0.1268365,112080.0,112060.0,0.25801746]
[1759133360852,0.01327,112060.0,112050.0,0.1528869]
[1759133361062,0.03486,112060.0,112050.0,1.07392602]
[1759133362254,0.01327,112060.0,112050.0,1.07692602]
[1759133362761,0.01327,112060.0,112050.0,1.07992602]
[1759133363254,0.01327,112060.0,112050.0,1.14360182]
[1759133363960,0.01327,112060.0,112050.0,1.07992602]
[1759133364961,0.01327,112060.0,112050.0,1.43084602]
[1759133366164,0.01327,112060.0,112050.0,1.68886348]
[1759133366662,0.01327,112060.0,112050.0,2.08886348]
[1759133368168,0.01327,112070.0,112060.0,0.0892076]
[1759133368464,0.01327,112070.0,112060.0,0.41084405]
[1759133369172,0.01334,112080.0,112060.0,0.92687897]
[1759133369369,0.01334,112080.0,112070.0,1.16681706]
[1759133369558,0.01334,112080.0,112070.0,1.42483452]
[1759133370564,0.01334,112080.0,112070.0,1.68285198]
[1759133371161,0.01334,112080.0,112070.0,1.42483452]
[1759133373259,0.01734,112080.0,112070.0,1.42483452]
[1759133373460,0.01734,112080.0,112070.0,1.68285198]
[1759133373669,0.01734,112080.0,112070.0,1.42479452]
[1759133374570,0.01734,112080.0,112070.0,0.60523452]
[1759133374869,0.01734,112080.0,112070.0,1.42479452]
[1759133376368,0.01734,112080.0,112070.0,1.48841351]
[1759133376571,0.01734,112080.0,112070.0,1.42479452]
[1759133377170,0.01734,112080.0,112070.0,1.42475452]
[1759133377472,0.01734,112080.0,112070.0,1.48837351]
[1759133378065,0.01734,112080.0,112070.0,1.74639097]
[1759133379073,0.01387,112090.0,112080.0,0.0891923]
[1759133379264,0.01387,112090.0,112080.0,0.36554528]
[1759133379465,0.01387,112090.0,112080.0,1.18502528]
[1759133380164,0.01387,112090.0,112080.0,1.7010602]
[1759133380360,0.01327,112100.0,112090.0,0.0891844]
[1759133380575,0.01327,112100.0,112090.0,0.60521932]
[1759133380873,0.01327,112100.0,112090.0,1.42469932]
[1759133382073,0.01327,112100.0,112090.0,0.60521932]
[1759133382273,0.01327,112100.0,112090.0,1.42465932]
[1759133382574,0.01327,112100.0,112090.0,0.60521932]
[1759133382770,0.01327,112100.0,112090.0,1.42465932]
[1759133383576,0.01327,112100.0,112090.0,1.42461932]
[1759133384775,0.01327,112100.0,112090.0,0.60521932]
[1759133384965,0.01327,112100.0,112090.0,1.42461932]
[1759133385171,0.01327,112100.0,112090.0,0.60521932]
[1759133385570,0.03486,112100.0,112090.0,1.42457932]
[1759133385775,0.03486,112100.0,112090.0,0.60521932]
[1759133385976,0.03486,112100.0,112090.0,1.42457932]
[1759133387276,0.01327,112090.0,112080.0,0.15280629]
[1759133387482,0.01327,112090.0,112080.0,1.32674222]
[1759133387483,0.03486,112090.0,112080.0,1.32674222]
[1759133387680,0.43486,112090.0,112080.0,0.60522722]
[1759133387880,0.43486,112090.0,112080.0,1.42454722]
[1759133388874,0.01327,112090.0,112080.0,1.68256468]
[1759133392179,0.01327,112090.0,112080.0,1.42420924]
[1759133393277,0.03583,112090.0,112080.0,1.42416924]
[1759133393575,0.01327,112090.0,112080.0,1.42416924]
[1759133394087,0.01327,112090.0,112080.0,1.48778823]
[1759133396882,0.01327,112100.0,112090.0,0.0891851]
[1759133397187,0.01327,112110.0,112100.0,0.0891771]
[1759133397384,0.01327,112110.0,112100.0,1.42407404]
[1759133398783,0.01327,112120.0,112110.0,0.0891689]
[1759133398976,0.01327,112120.0,112110.0,0.6137246]
[1759133400089,0.03583,112120.0,112110.0,0.6137246]
[1759133400386,0.01327,112120.0,112110.0,1.4328846]
[1759133400586,0.01282,112130.0,112120.0,0.10753507]
[1759133400792,0.01282,112130.0,112120.0,0.62323201]
[1759133403675,0.01282,112130.0,112120.0,1.44227201]
[1759133405692,0.01282,112140.0,112130.0,0.0891527]
[1759133405891,0.01282,112140.0,112130.0,0.60484964]
[1759133407687,0.03538,112140.0,112130.0,0.34700117]
[1759133407883,0.03538,112140.0,112130.0,1.16592117]
[1759133408585,0.01282,112140.0,112130.0,1.16592117]
[1759133408783,0.01282,112140.0,112130.0,1.42376964]
[1759133409987,0.01282,112150.0,112140.0,0.0891447]
[1759133410192,0.01282,112150.0,112140.0,0.60484164]
[1759133412094,0.01282,112160.0,112150.0,0.0891368]
[1759133412295,0.03538,112160.0,112150.0,1.16582527]
[1759133413498,0.43538,112160.0,112150.0,1.16578527]
[1759133413694,0.43538,112160.0,112150.0,0.34698527]
[1759133413991,0.43538,112160.0,112150.0,1.16574527]
[1759133414197,0.03538,112160.0,112150.0,1.16574527]
[1759133414392,0.01282,112160.0,112150.0,1.42359374]
[1759133415998,0.01282,112170.0,112160.0,0.0891288]
[1759133416198,0.01282,112170.0,112160.0,0.61374688]
[1759133416398,0.01282,112170.0,112160.0,1.43242688]
[1759133417197,0.01282,112180.0,112170.0,0.0891222]
[1759133417403,0.03443,112180.0,112170.0,1.42345914]
[1759133418293,0.03443,112180.0,112170.0,0.60481914]
[1759133418603,0.03443,112180.0,112170.0,1.42341914]
[1759133419797,0.03443,112180.0,112170.0,0.60481914]
[1759133419995,0.03443,112180.0,112170.0,1.42337914]
[1759133422198,0.01364,112170.0,112160.0,0.0891288]
[1759133422398,0.03488,112170.0,112160.0,0.77941727]